Workbook

Sheet Лист1
A1: Школа | C1: МБОУ "СОШ №26" НМР РТ | F1: Согласование: | G1: должность | H1: Директор
A2: Типовое примерное меню приготавливаемых блюд | G2: фамилия | H2: Хайруллина Ч.М.
A3: Возрастная категория | E3: 7-11 лет | G3: дата | H3: 15 | I3: 1 | J3: 2024
H4: день | I4: месяц | J4: год
A5: Неделя | B5: День недели | C5: Прием пищи | D5: Раздел меню | E5: Блюда | F5: Вес блюда, г | G5: Белки | H5: Жиры | I5: Углеводы | J5: Калорийность | K5: № рецептуры | L5: Цена
A6: 2 | B6: 6 | C6: Завтрак | D6: сладкое | E6: Булочка сдобная | F6: 50 | G6: 7.05 | H6: 9.3 | I6: 16.8 | J6: 209 | L6: 37.55
D7: хлеб бел. | E7: Батон нарезной | F7: 60 | G7: 4.5 | H7: 1.74 | I7: 30.84 | J7: 157.2
D8: гор.блюдо | E8: Каша пшеничная молочная | F8: 200 | G8: 8.56 | H8: 9.8 | I8: 19.49 | J8: 174.46
D9: гор.напиток | E9: Чай с сахаром, с яблоком | F9: 200 | G9: 0.11 | H9: 0.06 | I9: 8.97 | J9: 36.68
D10: итого | F10: 500 | G10: =SUM(G6:G9) -> 20.22 | H10: =SUM(H6:H9) -> 20.9 | I10: =SUM(I6:I9) -> 76.1 | J10: =SUM(J6:J9) -> 577.34 | L10: =SUM(L6:L9) -> 37.55
A11: =A6 -> 2 | B11: =B6 -> 6 | C11: Обед | D11: 1 блюдо | E11: Борщ из свежей капусты с картофелем со сметаной | F11: 205 | G11: 1.57 | H11: 10.69 | I11: 8.93 | J11: 113.1 | L11: 77.59
D12: 2 блюдо | E12: Биточки рыбны | F12: 90 | G12: 10.68 | H12: 8.98 | I12: 16.21 | J12: 170.2
D13: гарнир | E13: Макароны отварные с маслом | F13: 153 | G13: 5.68 | H13: 2.88 | I13: 31.96 | J13: 176.1
D14: напиток | E14: Сок фруктовый | F14: 200 | G14: 1 | H14: 0 | I14: 20.2 | J14: 84.8
D15: хлеб бел. | E15: Хлеб пшеничный | F15: 30 | G15: 2.28 | H15: 0.24 | I15: 14.76 | J15: 70.5
D16: хлеб черн. | E16: Хлеб дарницкий | F16: 25 | G16: 1.65 | H16: 0.3 | I16: 9.9 | J16: 49.5
D19: итого | F19: =SUM(F11:F18) -> 703 | G19: =SUM(G11:G18) -> 22.86 | H19: =SUM(H11:H18) -> 23.09 | I19: =SUM(I11:I18) -> 101.96 | J19: =SUM(J11:J18) -> 664.2 | L19: =SUM(L11:L18) -> 77.59
A20: =A6 -> 2 | B20: =B6 -> 6 | C20: Итого за день: | F20: =F10+F19 -> 1203 | G20: =G10+G19 -> 43.08 | H20: =H10+H19 -> 43.99 | I20: =I10+I19 -> 178.06 | J20: =J10+J19 -> 1241.54 | L20: 119.71
